[Event "Early-Titled-Tuesday-Blitz-January-23-2024"]
[Site "Chess.com"]
[Date "2024.01.23"]
[Round "8"]
[White "Savagelittlemole"]
[Black "Pastore1978"]
[Result "1-0"]
[WhiteElo "2454"]
[BlackElo "2279"]
[TimeControl "180+1"]
[EndTime "9:29:43 PST"]
[Termination "Savagelittlemole won by checkmate"]

1. e4 {[%clk 0:03:00.9]} 1... e6 {[%clk 0:02:59.5]} 2. d4 {[%clk 0:03:00.5]}
2... d5 {[%clk 0:03:00.1]} 3. Nd2 {[%clk 0:03:00.4]} 3... c5 {[%clk 0:02:59.6]}
4. exd5 {[%clk 0:02:59]} 4... Qxd5 {[%clk 0:02:57.5]} 5. Ngf3 {[%clk 0:02:58.6]}
5... cxd4 {[%clk 0:02:58.1]} 6. Bc4 {[%clk 0:02:57.6]} 6... Qd7 {[%clk
0:02:58.8]} 7. O-O {[%clk 0:02:56.4]} 7... Nc6 {[%clk 0:02:59.5]} 8. Nb3 {[%clk
0:02:56.5]} 8... a6 {[%clk 0:03:00.2]} 9. Nbxd4 {[%clk 0:02:56.6]} 9... Nxd4
{[%clk 0:03:01.1]} 10. Nxd4 {[%clk 0:02:56.9]} 10... Qc7 {[%clk 0:03:01.6]} 11.
Qe2 {[%clk 0:02:54]} 11... Bd6 {[%clk 0:03:01.1]} 12. h3 {[%clk 0:02:52.5]}
12... Ne7 {[%clk 0:03:00.1]} 13. c3 {[%clk 0:02:49.1]} 13... b5 {[%clk
0:02:58.5]} 14. Bd3 {[%clk 0:02:48]} 14... Bb7 {[%clk 0:02:58]} 15. Qh5 {[%clk
0:02:43.3]} 15... g6 {[%clk 0:02:39]} 16. Qh4 {[%clk 0:02:33.1]} 16... Nf5
{[%clk 0:02:29.6]} 17. Bxf5 {[%clk 0:02:28.4]} 17... gxf5 {[%clk 0:02:30.5]} 18.
Bg5 {[%clk 0:02:18.7]} 18... Rg8 {[%clk 0:01:33.3]} 19. f3 {[%clk 0:02:14.4]}
19... Bh2+ {[%clk 0:01:23]} 20. Kh1 {[%clk 0:02:13.1]} 20... Qg3 {[%clk
0:01:04.1]} 21. Qxg3 {[%clk 0:01:36]} 21... Bxg3 {[%clk 0:01:05]} 22. Bf6 {[%clk
0:01:35.4]} 22... Rg6 {[%clk 0:01:02.8]} 23. Ne2 {[%clk 0:01:25.9]} 23... Bd6
{[%clk 0:00:36.8]} 24. Bh4 {[%clk 0:01:23.6]} 24... Be7 {[%clk 0:00:34.6]} 25.
Bxe7 {[%clk 0:01:22.3]} 25... Kxe7 {[%clk 0:00:35.5]} 26. a4 {[%clk 0:01:19.4]}
26... Rag8 {[%clk 0:00:34.4]} 27. Rf2 {[%clk 0:01:18]} 27... bxa4 {[%clk
0:00:19.7]} 28. Rxa4 {[%clk 0:01:16.4]} 28... Kf6 {[%clk 0:00:12.8]} 29. Rb4
{[%clk 0:01:13.9]} 29... Bd5 {[%clk 0:00:12.2]} 30. c4 {[%clk 0:01:11.4]} 30...
Bc6 {[%clk 0:00:11.5]} 31. Nd4 {[%clk 0:01:11]} 31... Rc8 {[%clk 0:00:09.4]} 32.
Rb6 {[%clk 0:01:02.9]} 32... Ba8 {[%clk 0:00:09.1]} 33. b3 {[%clk 0:01:02.9]}
33... a5 {[%clk 0:00:08.8]} 34. Ra2 {[%clk 0:00:57.3]} 34... Rg3 {[%clk
0:00:08.4]} 35. Rxa5 {[%clk 0:00:54.9]} 35... Rcg8 {[%clk 0:00:08.8]} 36. Ra2
{[%clk 0:00:43.5]} 36... Ke5 {[%clk 0:00:09.2]} 37. Nc6+ {[%clk 0:00:36.4]}
37... Kf4 {[%clk 0:00:09.3]} 38. Nd4 {[%clk 0:00:30.7]} 38... Ke5 {[%clk
0:00:08.7]} 39. Rd2 {[%clk 0:00:25.6]} 39... h5 {[%clk 0:00:08.2]} 40. Rb5+
{[%clk 0:00:23.4]} 40... Kf6 {[%clk 0:00:06.9]} 41. c5 {[%clk 0:00:20.4]} 41...
h4 {[%clk 0:00:07.3]} 42. c6 {[%clk 0:00:20.1]} 42... Rc8 {[%clk 0:00:06.6]} 43.
Rc5 {[%clk 0:00:20.3]} 43... Rc7 {[%clk 0:00:04.1]} 44. Rdc2 {[%clk 0:00:18]}
44... Rg8 {[%clk 0:00:04]} 45. b4 {[%clk 0:00:17.5]} 45... Rb8 {[%clk
0:00:03.4]} 46. b5 {[%clk 0:00:17]} 46... Rd8 {[%clk 0:00:03.9]} 47. b6 {[%clk
0:00:16.8]} 47... Rcc8 {[%clk 0:00:03.8]} 48. b7 {[%clk 0:00:15.8]} 48... Bxb7
{[%clk 0:00:03.8]} 49. cxb7 {[%clk 0:00:16.7]} 49... Rb8 {[%clk 0:00:04.5]} 50.
Nc6 {[%clk 0:00:16.6]} 50... Rd1+ {[%clk 0:00:03.9]} 51. Kh2 {[%clk 0:00:15.4]}
51... Rxb7 {[%clk 0:00:04.8]} 52. Rc1 {[%clk 0:00:12.2]} 52... Rd2 {[%clk
0:00:05.3]} 53. R5c2 {[%clk 0:00:12.6]} 53... Rd6 {[%clk 0:00:05.5]} 54. Na5
{[%clk 0:00:12.5]} 54... Rb5 {[%clk 0:00:05.5]} 55. Nc4 {[%clk 0:00:12.8]} 55...
Rd8 {[%clk 0:00:05.7]} 56. Ne3 {[%clk 0:00:11]} 56... Rb4 {[%clk 0:00:04.9]} 57.
Rc4 {[%clk 0:00:10.4]} 57... Rb3 {[%clk 0:00:04.6]} 58. Nf1 {[%clk 0:00:08.9]}
58... Rdd3 {[%clk 0:00:03.8]} 59. R1c2 {[%clk 0:00:07.4]} 59... Rb1 {[%clk
0:00:04]} 60. Nd2 {[%clk 0:00:06.6]} 60... Rd1 {[%clk 0:00:03.2]} 61. Nb3 {[%clk
0:00:06.6]} 61... Re3 {[%clk 0:00:02.8]} 62. Nc5 {[%clk 0:00:05.8]} 62... Ree1
{[%clk 0:00:03]} 63. Rxh4 {[%clk 0:00:03.7]} 63... Rh1+ {[%clk 0:00:03.1]} 64.
Kg3 {[%clk 0:00:04.3]} 64... Kg5 {[%clk 0:00:03.9]} 65. f4+ {[%clk 0:00:04.1]}
65... Kg6 {[%clk 0:00:04.1]} 66. Rc3 {[%clk 0:00:04.1]} 66... Rdg1 {[%clk
0:00:03.9]} 67. Rh8 {[%clk 0:00:04.2]} 67... Kg7 {[%clk 0:00:03.9]} 68. Rc8
{[%clk 0:00:03.8]} 68... Kg6 {[%clk 0:00:03.7]} 69. Rc7 {[%clk 0:00:04.1]} 69...
Rd1 {[%clk 0:00:03.7]} 70. Nd7 {[%clk 0:00:04.2]} 70... Rhg1 {[%clk 0:00:04]}
71. Ne5+ {[%clk 0:00:04.7]} 71... Kg7 {[%clk 0:00:04.1]} 72. Rxf7+ {[%clk
0:00:05.2]} 72... Kh6 {[%clk 0:00:04.9]} 73. Rc8 {[%clk 0:00:05.3]} 73... Rd3+
{[%clk 0:00:05.2]} 74. Kh4 {[%clk 0:00:05.4]} 74... Rxh3+ {[%clk 0:00:04.2]} 75.
Kxh3 {[%clk 0:00:05]} 75... Rh1+ {[%clk 0:00:04.1]} 76. Kg3 {[%clk 0:00:05.4]}
76... Rh3+ {[%clk 0:00:04.4]} 77. gxh3 {[%clk 0:00:05.6]} 77... Kh5 {[%clk
0:00:04.4]} 78. Rh8# {[%clk 0:00:05.8]} 1-0

[Event "Early-Titled-Tuesday-Blitz-January-23-2024"]
[Site "Chess.com"]
[Date "2024.01.23"]
[Round "8"]
[White "NovozhilovSemen"]
[Black "mortngabriel"]
[Result "1/2-1/2"]
[WhiteElo "2654"]
[BlackElo "2531"]
[TimeControl "180+1"]
[EndTime "9:29:46 PST"]
[Termination "Game drawn by stalemate"]

1. d4 {[%clk 0:02:50.1]} 1... d5 {[%clk 0:02:59.5]} 2. c4 {[%clk 0:02:49.2]}
2... e6 {[%clk 0:02:59.9]} 3. Nf3 {[%clk 0:02:48.9]} 3... Nf6 {[%clk 0:02:59.8]}
4. g3 {[%clk 0:02:49.1]} 4... Bb4+ {[%clk 0:02:50.1]} 5. Bd2 {[%clk 0:02:48.9]}
5... Be7 {[%clk 0:02:49.5]} 6. Bg2 {[%clk 0:02:49.1]} 6... O-O {[%clk
0:02:49.9]} 7. O-O {[%clk 0:02:48.8]} 7... Nbd7 {[%clk 0:02:48.5]} 8. Qc2 {[%clk
0:02:47.2]} 8... c6 {[%clk 0:02:42.2]} 9. Rd1 {[%clk 0:02:44.5]} 9... b6 {[%clk
0:02:38.4]} 10. b3 {[%clk 0:02:44.5]} 10... a5 {[%clk 0:02:37.8]} 11. Nc3 {[%clk
0:02:43.6]} 11... Ba6 {[%clk 0:02:33.9]} 12. e4 {[%clk 0:02:40.9]} 12... dxc4
{[%clk 0:02:29.4]} 13. Bg5 {[%clk 0:02:33.9]} 13... cxb3 {[%clk 0:02:24.6]} 14.
axb3 {[%clk 0:02:34.8]} 14... h6 {[%clk 0:02:23.1]} 15. Bf4 {[%clk 0:02:32.8]}
15... Rc8 {[%clk 0:02:17.7]} 16. Ne5 {[%clk 0:02:30.4]} 16... Nxe5 {[%clk
0:02:03.6]} 17. dxe5 {[%clk 0:02:20.3]} 17... Nd7 {[%clk 0:02:03.3]} 18. Na4
{[%clk 0:02:20.8]} 18... Qc7 {[%clk 0:01:30.8]} 19. Rac1 {[%clk 0:02:11.2]}
19... Nc5 {[%clk 0:01:25.5]} 20. Nxb6 {[%clk 0:01:55.2]} 20... Qxb6 {[%clk
0:01:23.2]} 21. Be3 {[%clk 0:01:55.3]} 21... Qxb3 {[%clk 0:01:17.7]} 22. Bxc5
{[%clk 0:01:55]} 22... Qxc2 {[%clk 0:01:18.2]} 23. Rxc2 {[%clk 0:01:55.9]} 23...
Bxc5 {[%clk 0:01:18.5]} 24. Rxc5 {[%clk 0:01:56.8]} 24... Bb5 {[%clk 0:01:18.7]}
25. Bf1 {[%clk 0:01:48.5]} 25... Rb8 {[%clk 0:01:17.8]} 26. Rd7 {[%clk
0:01:17.7]} 26... a4 {[%clk 0:01:13.5]} 27. Ra7 {[%clk 0:01:16.4]} 27... Ra8
{[%clk 0:01:12.8]} 28. Rxa8 {[%clk 0:00:42.7]} 28... Rxa8 {[%clk 0:01:13.7]} 29.
Bxb5 {[%clk 0:00:43]} 29... cxb5 {[%clk 0:01:14.4]} 30. Rxb5 {[%clk 0:00:43.9]}
30... a3 {[%clk 0:01:14.7]} 31. Rb1 {[%clk 0:00:44.6]} 31... a2 {[%clk
0:01:14.1]} 32. Ra1 {[%clk 0:00:45.1]} 32... Kf8 {[%clk 0:01:01.9]} 33. Kf1
{[%clk 0:00:45.3]} 33... Ke7 {[%clk 0:01:02.3]} 34. Ke2 {[%clk 0:00:45.7]} 34...
Kd7 {[%clk 0:01:02.9]} 35. Kd3 {[%clk 0:00:45.8]} 35... Kc6 {[%clk 0:01:03.6]}
36. Kc4 {[%clk 0:00:43]} 36... g5 {[%clk 0:01:00.8]} 37. f4 {[%clk 0:00:34.6]}
37... gxf4 {[%clk 0:00:55.3]} 38. gxf4 {[%clk 0:00:34.4]} 38... Ra4+ {[%clk
0:00:44.4]} 39. Kb3 {[%clk 0:00:33.5]} 39... Rxe4 {[%clk 0:00:45]} 40. Rxa2
{[%clk 0:00:30.7]} 40... Rxf4 {[%clk 0:00:45.5]} 41. Rd2 {[%clk 0:00:30.6]}
41... Rf5 {[%clk 0:00:40.4]} 42. Rd6+ {[%clk 0:00:24.6]} 42... Kc7 {[%clk
0:00:40.2]} 43. Ra6 {[%clk 0:00:24.1]} 43... Kb7 {[%clk 0:00:37.3]} 44. Rd6
{[%clk 0:00:23.7]} 44... Kc7 {[%clk 0:00:30.9]} 45. Ra6 {[%clk 0:00:23.3]} 45...
Kd7 {[%clk 0:00:29]} 46. Ra5 {[%clk 0:00:19.7]} 46... Rf2 {[%clk 0:00:24]} 47.
Ra7+ {[%clk 0:00:12.9]} 47... Ke8 {[%clk 0:00:23.7]} 48. Ra8+ {[%clk 0:00:13.3]}
48... Ke7 {[%clk 0:00:23.6]} 49. Kc4 {[%clk 0:00:14.2]} 49... Rxh2 {[%clk
0:00:23.4]} 50. Kd4 {[%clk 0:00:14.3]} 50... Rh4+ {[%clk 0:00:21.6]} 51. Ke3
{[%clk 0:00:14.4]} 51... Rb4 {[%clk 0:00:21.3]} 52. Rc8 {[%clk 0:00:13.5]} 52...
h5 {[%clk 0:00:21.3]} 53. Rh8 {[%clk 0:00:11.9]} 53... h4 {[%clk 0:00:21.6]} 54.
Kd3 {[%clk 0:00:12.3]} 54... Ra4 {[%clk 0:00:20.7]} 55. Ke3 {[%clk 0:00:12.4]}
55... h3 {[%clk 0:00:20.6]} 56. Kf3 {[%clk 0:00:11.2]} 56... Ra3+ {[%clk
0:00:19.7]} 57. Ke4 {[%clk 0:00:11.3]} 57... Rb3 {[%clk 0:00:16.8]} 58. Kf4
{[%clk 0:00:10]} 58... Kd7 {[%clk 0:00:16.6]} 59. Ke4 {[%clk 0:00:08.7]} 59...
Kc6 {[%clk 0:00:14.6]} 60. Rc8+ {[%clk 0:00:09]} 60... Kb5 {[%clk 0:00:13.6]}
61. Rh8 {[%clk 0:00:09.7]} 61... Kc4 {[%clk 0:00:11.2]} 62. Rh7 {[%clk
0:00:10.1]} 62... Ra3 {[%clk 0:00:05.7]} 63. Rxf7 {[%clk 0:00:09.7]} 63... h2
{[%clk 0:00:06.1]} 64. Rh7 {[%clk 0:00:10]} 64... Ra2 {[%clk 0:00:06.6]} 65. Rh3
{[%clk 0:00:10.2]} 65... Kc5 {[%clk 0:00:04.9]} 66. Rh6 {[%clk 0:00:09.9]} 66...
Kc4 {[%clk 0:00:03.3]} 67. Rh3 {[%clk 0:00:09.3]} 67... Rb2 {[%clk 0:00:03.5]}
68. Rh8 {[%clk 0:00:09]} 68... Re2+ {[%clk 0:00:03.5]} 69. Kf3 {[%clk
0:00:09.1]} 69... Rxe5 {[%clk 0:00:02.7]} 70. Rxh2 {[%clk 0:00:09.7]} 70... Kd3
{[%clk 0:00:02.6]} 71. Rh6 {[%clk 0:00:06.6]} 71... Re3+ {[%clk 0:00:02.5]} 72.
Kf4 {[%clk 0:00:07.1]} 72... Re4+ {[%clk 0:00:01.7]} 73. Kf3 {[%clk 0:00:07]}
73... e5 {[%clk 0:00:02.6]} 74. Rd6+ {[%clk 0:00:07.1]} 74... Rd4 {[%clk
0:00:03]} 75. Re6 {[%clk 0:00:07.6]} 75... e4+ {[%clk 0:00:03.3]} 76. Kf2 {[%clk
0:00:08.1]} 76... Rb4 {[%clk 0:00:03.1]} 77. Rd6+ {[%clk 0:00:08]} 77... Rd4
{[%clk 0:00:04]} 78. Rxd4+ {[%clk 0:00:06.8]} 78... Kxd4 {[%clk 0:00:03.9]} 79.
Ke2 {[%clk 0:00:07.7]} 79... e3 {[%clk 0:00:04.3]} 80. Ke1 {[%clk 0:00:08.3]}
80... Kd3 {[%clk 0:00:05.2]} 81. Kd1 {[%clk 0:00:08.8]} 81... e2+ {[%clk
0:00:06.1]} 82. Ke1 {[%clk 0:00:09.2]} 82... Ke3 {[%clk 0:00:07]} 1/2-1/2

[Event "Early-Titled-Tuesday-Blitz-January-23-2024"]
[Site "Chess.com"]
[Date "2024.01.23"]
[Round "8"]
[White "viktorskliarov"]
[Black "lucliasco"]
[Result "1/2-1/2"]
[WhiteElo "2670"]
[BlackElo "2882"]
[TimeControl "180+1"]
[EndTime "9:29:54 PST"]
[Termination "Game drawn by 50-move rule"]

1. e4 {[%clk 0:03:00.9]} 1... e5 {[%clk 0:02:46.8]} 2. Nc3 {[%clk 0:02:59.6]}
2... Nc6 {[%clk 0:02:45.5]} 3. Bc4 {[%clk 0:02:59.2]} 3... Nf6 {[%clk
0:02:44.6]} 4. d3 {[%clk 0:02:59.2]} 4... Bb4 {[%clk 0:02:43.7]} 5. Bd2 {[%clk
0:02:58.3]} 5... O-O {[%clk 0:02:41.6]} 6. Nge2 {[%clk 0:02:53.9]} 6... d6
{[%clk 0:02:36.6]} 7. a3 {[%clk 0:02:53.8]} 7... Ba5 {[%clk 0:02:35.1]} 8. Ng3
{[%clk 0:02:33.8]} 8... Be6 {[%clk 0:02:28.4]} 9. Ba2 {[%clk 0:02:19.7]} 9...
Bxa2 {[%clk 0:02:19.4]} 10. Rxa2 {[%clk 0:02:18.8]} 10... Bxc3 {[%clk
0:02:19.6]} 11. Bxc3 {[%clk 0:02:18.4]} 11... d5 {[%clk 0:02:20.5]} 12. O-O
{[%clk 0:02:10.4]} 12... Re8 {[%clk 0:02:19.8]} 13. Qf3 {[%clk 0:01:59.6]} 13...
Nd4 {[%clk 0:02:13.4]} 14. Bxd4 {[%clk 0:01:52.4]} 14... exd4 {[%clk 0:02:14.3]}
15. Raa1 {[%clk 0:01:31.5]} 15... dxe4 {[%clk 0:02:09.2]} 16. Nxe4 {[%clk
0:01:31.6]} 16... Nxe4 {[%clk 0:02:09.2]} 17. dxe4 {[%clk 0:01:32.5]} 17... c5
{[%clk 0:02:09.3]} 18. Rad1 {[%clk 0:01:27.4]} 18... Qb6 {[%clk 0:02:03.6]} 19.
b3 {[%clk 0:01:21.4]} 19... a5 {[%clk 0:02:03.7]} 20. a4 {[%clk 0:01:15.8]}
20... Qc6 {[%clk 0:02:03.4]} 21. Rfe1 {[%clk 0:01:10]} 21... Re5 {[%clk
0:02:03.7]} 22. c3 {[%clk 0:00:55.6]} 22... Rd8 {[%clk 0:01:38]} 23. h3 {[%clk
0:00:46.8]} 23... g6 {[%clk 0:01:32.4]} 24. Rd3 {[%clk 0:00:39.1]} 24... Rd6
{[%clk 0:01:21.4]} 25. cxd4 {[%clk 0:00:34.8]} 25... Rxd4 {[%clk 0:01:19.4]} 26.
Rxd4 {[%clk 0:00:31.7]} 26... cxd4 {[%clk 0:01:20.3]} 27. Qd3 {[%clk 0:00:28.4]}
27... Qc3 {[%clk 0:01:20.1]} 28. Qxc3 {[%clk 0:00:23.6]} 28... dxc3 {[%clk
0:01:21]} 29. Rc1 {[%clk 0:00:23.7]} 29... Rxe4 {[%clk 0:01:16.9]} 30. Rxc3
{[%clk 0:00:23.3]} 30... Rb4 {[%clk 0:01:17.8]} 31. Kf1 {[%clk 0:00:20.4]} 31...
h5 {[%clk 0:01:17.4]} 32. g3 {[%clk 0:00:20.3]} 32... Kg7 {[%clk 0:01:15.9]} 33.
h4 {[%clk 0:00:20.3]} 33... f6 {[%clk 0:01:14.6]} 34. Ke2 {[%clk 0:00:19.7]}
34... g5 {[%clk 0:01:13.6]} 35. hxg5 {[%clk 0:00:18.3]} 35... fxg5 {[%clk
0:01:14.5]} 36. Kf3 {[%clk 0:00:18.8]} 36... Kf6 {[%clk 0:01:12.2]} 37. Re3
{[%clk 0:00:19]} 37... b6 {[%clk 0:01:10.5]} 38. Kg2 {[%clk 0:00:18.8]} 38...
Kf5 {[%clk 0:01:08.4]} 39. Kf3 {[%clk 0:00:18.5]} 39... h4 {[%clk 0:01:07.1]}
40. Kg2 {[%clk 0:00:15]} 40... hxg3 {[%clk 0:01:03.7]} 41. Kxg3 {[%clk
0:00:14.7]} 41... Rg4+ {[%clk 0:01:02.8]} 42. Kf3 {[%clk 0:00:14.8]} 42... Rh4
{[%clk 0:01:00.5]} 43. Kg3 {[%clk 0:00:14.5]} 43... Rd4 {[%clk 0:01:00.2]} 44.
Kf3 {[%clk 0:00:13.9]} 44... g4+ {[%clk 0:00:56.6]} 45. Kg3 {[%clk 0:00:14]}
45... Rd6 {[%clk 0:00:57.5]} 46. f3 {[%clk 0:00:11]} 46... gxf3 {[%clk
0:00:55.5]} 47. Kxf3 {[%clk 0:00:11.6]} 47... Rd2 {[%clk 0:00:56.1]} 48. Rc3
{[%clk 0:00:08.3]} 48... Ke5 {[%clk 0:00:48.4]} 49. Ke3 {[%clk 0:00:08.5]} 49...
Rh2 {[%clk 0:00:48.1]} 50. Kd3 {[%clk 0:00:06.4]} 50... Rh4 {[%clk 0:00:43.5]}
51. Rc6 {[%clk 0:00:05.7]} 51... Rb4 {[%clk 0:00:40.8]} 52. Kc3 {[%clk 0:00:06]}
52... Kd5 {[%clk 0:00:41.3]} 53. Rh6 {[%clk 0:00:06]} 53... Kc5 {[%clk
0:00:41.4]} 54. Rh5+ {[%clk 0:00:06.3]} 54... Kc6 {[%clk 0:00:41.9]} 55. Rh6+
{[%clk 0:00:06.8]} 55... Kb7 {[%clk 0:00:42.4]} 56. Rh7+ {[%clk 0:00:07.4]}
56... Ka6 {[%clk 0:00:42.8]} 57. Rh6 {[%clk 0:00:07.8]} 57... Rg4 {[%clk
0:00:43.4]} 58. Rh7 {[%clk 0:00:07.7]} 58... Rf4 {[%clk 0:00:42.6]} 59. Rh6
{[%clk 0:00:07.9]} 59... Re4 {[%clk 0:00:43]} 60. Rh7 {[%clk 0:00:08.2]} 60...
Re6 {[%clk 0:00:43.6]} 61. Rh5 {[%clk 0:00:08.1]} 61... Rf6 {[%clk 0:00:43]} 62.
Rg5 {[%clk 0:00:08]} 62... Rc6+ {[%clk 0:00:43.6]} 63. Kb2 {[%clk 0:00:08.1]}
63... Rh6 {[%clk 0:00:44.5]} 64. Rf5 {[%clk 0:00:08.2]} 64... Rd6 {[%clk
0:00:43.9]} 65. Rg5 {[%clk 0:00:08.4]} 65... Kb7 {[%clk 0:00:44.5]} 66. Rh5
{[%clk 0:00:08.6]} 66... Kc6 {[%clk 0:00:45]} 67. Kc3 {[%clk 0:00:08.9]} 67...
Rg6 {[%clk 0:00:45.5]} 68. Kc4 {[%clk 0:00:08.4]} 68... Rg4+ {[%clk 0:00:45.5]}
69. Kc3 {[%clk 0:00:08.9]} 69... Rf4 {[%clk 0:00:45.4]} 70. Kd3 {[%clk
0:00:08.9]} 70... Rf2 {[%clk 0:00:44]} 71. Kc3 {[%clk 0:00:09.1]} 71... Rg2
{[%clk 0:00:43.7]} 72. Kc4 {[%clk 0:00:09.2]} 72... Rc2+ {[%clk 0:00:43.2]} 73.
Kd3 {[%clk 0:00:09.2]} 73... Rc1 {[%clk 0:00:43.9]} 74. Kd2 {[%clk 0:00:08.6]}
74... Ra1 {[%clk 0:00:40.4]} 75. Kc3 {[%clk 0:00:08.3]} 75... Kb7 {[%clk
0:00:40.7]} 76. Rh7+ {[%clk 0:00:07.7]} 76... Ka6 {[%clk 0:00:41]} 77. Rh6
{[%clk 0:00:08.3]} 77... Ra2 {[%clk 0:00:41.4]} 78. Rg6 {[%clk 0:00:07.9]} 78...
Rh2 {[%clk 0:00:41.5]} 79. Rf6 {[%clk 0:00:08.1]} 79... Rh3+ {[%clk 0:00:42]}
80. Kc4 {[%clk 0:00:08.2]} 80... Rg3 {[%clk 0:00:41]} 81. Rh6 {[%clk 0:00:07.6]}
81... Rg4+ {[%clk 0:00:41.4]} 82. Kc3 {[%clk 0:00:07.7]} 82... Rf4 {[%clk
0:00:42.2]} 83. Rg6 {[%clk 0:00:07.6]} 83... Rf5 {[%clk 0:00:42.4]} 84. Rh6
{[%clk 0:00:08]} 84... Rc5+ {[%clk 0:00:42.3]} 85. Kb2 {[%clk 0:00:07.8]} 85...
Rc8 {[%clk 0:00:43.2]} 86. Rg6 {[%clk 0:00:07.7]} 86... Kb7 {[%clk 0:00:43.6]}
87. Rh6 {[%clk 0:00:08.1]} 87... Rc7 {[%clk 0:00:43.4]} 88. Rg6 {[%clk
0:00:08.3]} 88... Rd7 {[%clk 0:00:43.9]} 89. Rh6 {[%clk 0:00:08.6]} 89... Kc7
{[%clk 0:00:44.5]} 90. Kc3 {[%clk 0:00:08.7]} 90... Rd5 {[%clk 0:00:44.2]} 91.
Rh7+ {[%clk 0:00:08.7]} 91... Kc6 {[%clk 0:00:44.3]} 92. Rh6+ {[%clk 0:00:09]}
92... Kc5 {[%clk 0:00:45]} 93. Rg6 {[%clk 0:00:08.8]} 93... Rh5 {[%clk 0:00:45]}
94. Rg3 {[%clk 0:00:08.6]} 94... Rf5 {[%clk 0:00:44.3]} 95. Rh3 {[%clk
0:00:08.6]} 95... Re5 {[%clk 0:00:44.6]} 96. Rg3 {[%clk 0:00:08.8]} 96... Kd5
{[%clk 0:00:41.8]} 97. Rh3 {[%clk 0:00:08.7]} 1/2-1/2